lending/lending_fUSD_20241211
["ID","MTS","AMOUNT","RATE_DAILY","PERIOD"]
[345035336,1733944251899,-500.0,0.00011099,2]
[345035338,1733944251909,-500.0,0.00011099,2]
[345035340,1733944251918,-500.0,0.00011099,2]
[345035342,1733944251927,-500.0,0.00011099,2]
[345035344,1733944251937,-500.0,0.00011099,2]
[345035346,1733944251946,-500.0,0.00011099,2]
[345035348,1733944251955,-500.0,0.00011099,2]
[345035350,1733944251966,-500.0,0.00011099,2]
[345035352,1733944251975,-500.0,0.00011099,2]
[345035354,1733944251984,-288.63597835,0.00011099,2]
[345035356,1733944251994,-1285.2,0.00011099,2]
[345035358,1733944252003,-1285.2,0.00011099,2]
[345035360,1733944252012,-1285.2,0.00011099,2]
[345035362,1733944252022,-1285.2,0.00011099,2]
[345035364,1733944252031,-1285.2,0.00011099,2]
[345035366,1733944252040,-1285.2,0.00011099,2]
[345035368,1733944252049,-1285.2,0.00011099,2]
[345035370,1733944252059,-1285.2,0.00011099,2]
[345035372,1733944252069,-1285.2,0.00011099,2]
[345035374,1733944252079,-1285.2,0.00011099,2]
[345035376,1733944252088,-1285.2,0.00011099,2]
[345035378,1733944252097,-1285.2,0.00011099,2]
[345035380,1733944252107,-1285.2,0.00011099,2]
[345035382,1733944252116,-1285.2,0.00011099,2]
[345035384,1733944252125,-1285.2,0.00011099,2]
[345035386,1733944252134,-1285.2,0.00011099,2]
[345035388,1733944252144,-1285.2,0.00011099,2]
[345035390,1733944252153,-1285.2,0.00011099,2]
[345035392,1733944252162,-1285.2,0.00011099,2]
[345035394,1733944252172,-1285.2,0.00011099,2]
[345035396,1733944252181,-1285.2,0.00011099,2]
[345035398,1733944252190,-1285.2,0.00011099,2]
[345035400,1733944252200,-1285.39638596,0.00011099,2]
[345035402,1733944252209,-1091.39,0.00011099,2]
[345035403,1733944252218,-1091.39,0.00011099,2]
[345035404,1733944252227,-1091.39,0.00011099,2]
[345035405,1733944252236,-1242837.30209328,0.000111,2]
[345035406,1733944252245,-1268679.98646439,0.000111,2]
[345035407,1733944252254,-2157805.25991532,0.000111,2]
[345035408,1733944252263,-4341971.58787316,0.000111,2]
[345035409,1733944252272,-59044.1831857,0.000111,2]
[345035411,1733944252281,-16006344.49628087,0.000111,2]
[345035413,1733944252291,-8482887.32502901,0.000111,2]
[345035440,1733944252544,-1969380.82558102,0.000111,2]
[345035461,1733944252735,-1091.39,0.00011099,2]
[345035463,1733944252744,-1091.39,0.00011099,2]
[345035465,1733944252754,-1091.39,0.00011099,2]
[345035467,1733944252765,-1091.39,0.00011099,2]
[345035469,1733944252774,-1091.39,0.00011099,2]
[345035471,1733944252784,-1091.39,0.00011099,2]
[345035473,1733944252793,-1091.39,0.00011099,2]
[345035475,1733944252802,-1091.39,0.00011099,2]
[345035477,1733944252812,-1091.39,0.00011099,2]
[345035479,1733944252822,-5246.8581684,0.000111,2]
[345035481,1733944252834,-2432.44874,0.000111,2]
[345035484,1733944252847,-7891.57128245,0.000111,2]
[345035486,1733944252858,-362.86361497,0.000111,2]
[345035488,1733944252870,-2009.2983499,0.000111,2]
[345037590,1733944497111,755.48,8.252e-05,2]
[345037600,1733944888732,4000.23261272,0.0002,120]
[345037604,1733945108435,5000.0,0.0001,2]
[345037605,1733945130038,4351.02358458,9e-05,2]
[345037607,1733945155208,585.10387172,6.94e-05,2]
[345037608,1733945166821,6087.20047904,7e-05,2]
[345037610,1733945223060,70000.0,9e-05,2]
[345037611,1733945247738,303.80349445,1e-06,7]
[345037612,1733945274564,2000.0,9.534e-05,2]
[345037615,1733945370033,795.7,8.219e-05,2]
[345037624,1733945432169,-773.63,9.727e-05,2]
[345037625,1733945432180,-380.98,9.795e-05,2]
[345037626,1733945432190,-2683.39,9.88e-05,2]
[345037627,1733945432202,-574.757,9.88e-05,2]
[345037628,1733945432214,-7044.6787775,9.88e-05,2]
[345037629,1733945432278,-17621.73233732,9.88e-05,2]
[345037630,1733945432287,-150.0,9.999e-05,2]
[345037631,1733945432297,-135491.31955032,0.0001,2]
[345037632,1733945432309,-443.98,0.0001,2]
[345037645,1733945437863,-33572.71071453,0.0001,2]
[345037646,1733945437874,-737.92,0.00010058,2]
[345037647,1733945437884,-250.0,0.00010115,2]
[345037648,1733945437893,-23900.0,0.00010132,2]
[345037649,1733945437903,-91062.51648291,0.00010137,2]
[345037650,1733945437913,-497.23,0.00010137,2]
[345037651,1733945437925,-250.0,0.00010163,2]
[345037652,1733945437938,-250.0,0.00010167,2]
[345037653,1733945437947,-1000.0,0.0001017,2]
[345037654,1733945437958,-819.02,0.00010204,2]
[345037655,1733945437968,-200.0,0.00010223,2]
[345037656,1733945437978,-167.33,0.00010387,2]
[345037657,1733945437989,-737.92,0.0001043,2]
[345037658,1733945437998,-500.0,0.0001045,2]
[345037659,1733945438008,-795.7,0.00010463,2]
[345037660,1733945438017,-472.197,0.0001055,2]
[345037661,1733945438026,-500.0,0.0001063,2]
[345037662,1733945438036,-737.92,0.00010802,2]
[345037663,1733945438046,-164382.79881092,0.000109,2]
[345037664,1733945438056,-2000.0,0.00010904,2]
[345037665,1733945438066,-1297.50129048,0.00010954,2]
[345037666,1733945438075,-181.306649,0.00010958,2]
[345037667,1733945438085,-181.306649,0.00010958,2]
[345037668,1733945438094,-181.306649,0.00010958,2]
[345037669,1733945438104,-457.53997821,0.00010958,2]
[345037670,1733945438114,-500.0,0.00010958,2]
[345037671,1733945438123,-518.49551989,0.00010958,2]
[345037672,1733945438133,-500.0,0.00010958,2]
[345037673,1733945438142,-500.90424164,0.00010958,2]
[345037675,1733945438151,-522.01185624,0.00010958,2]
[345037676,1733945438160,-525.03316813,0.00010958,2]
[345037677,1733945438170,-500.22,0.00010958,2]
[345037678,1733945438180,-500.0,0.00010958,2]
[345037679,1733945438189,-500.0,0.00010958,2]
[345037680,1733945438199,-196.44,0.00010958,2]
[345037681,1733945438209,-500.0,0.00010958,2]
[345037682,1733945438219,-500.0,0.00010958,2]
[345037683,1733945438228,-500.0,0.00010958,2]
[345037684,1733945438237,-500.0,0.00010958,2]
[345037685,1733945438247,-500.0,0.00010958,2]
[345037686,1733945438256,-500.0,0.00010958,2]
[345037687,1733945438266,-500.0,0.00010958,2]
[345037688,1733945438275,-500.0,0.00010958,2]
[345037689,1733945438284,-500.0,0.00010958,2]
[345037690,1733945438294,-500.0,0.00010958,2]
[345037691,1733945438303,-500.0,0.00010958,2]
[345037692,1733945438312,-500.0,0.00010958,2]
[345037693,1733945438321,-500.0,0.00010958,2]
[345037694,1733945438331,-500.0,0.00010958,2]
[345037695,1733945438340,-500.0,0.00010958,2]
[345037696,1733945438349,-500.0,0.00010958,2]
[345037697,1733945438358,-500.0,0.00010958,2]
[345037698,1733945438368,-500.0,0.00010958,2]
[345037699,1733945438378,-500.0,0.00010958,2]
[345037700,1733945438387,-308.54625,0.00010958,2]
[345037701,1733945438397,-308.54625,0.00010958,2]
[345037703,1733945438407,-308.54625,0.00010958,2]
[345037705,1733945438416,-308.54625,0.00010958,2]
[345037707,1733945438425,-308.54625,0.00010958,2]
[345037708,1733945438435,-308.54625,0.00010958,2]
[345037709,1733945438445,-308.54625,0.00010958,2]
[345037710,1733945438454,-308.54625,0.00010958,2]
[345037711,1733945438464,-308.54625,0.00010958,2]
[345037712,1733945438473,-308.54625,0.00010958,2]
[345037713,1733945438482,-308.54625,0.00010958,2]
[345037714,1733945438492,-308.54625,0.00010958,2]
[345037715,1733945438501,-308.54625,0.00010958,2]
[345037716,1733945438511,-158.738199,0.00010958,2]
[345037717,1733945438520,-158.738199,0.00010958,2]
[345037718,1733945438529,-158.738199,0.00010958,2]
[345037719,1733945438539,-158.738199,0.00010958,2]
[345037720,1733945438548,-158.738199,0.00010958,2]
[345037721,1733945438557,-366.569356,0.00010958,2]
[345037722,1733945438567,-366.569356,0.00010958,2]
[345037723,1733945438576,-366.569356,0.00010958,2]
[345037724,1733945438586,-366.569356,0.00010958,2]
[345037725,1733945438595,-366.569356,0.00010958,2]
[345037726,1733945438604,-366.569356,0.00010958,2]
[345037727,1733945438614,-366.569356,0.00010958,2]
[345037728,1733945438624,-366.569356,0.00010958,2]
[345037729,1733945438633,-366.569356,0.00010958,2]
[345037730,1733945438643,-366.569356,0.00010958,2]
[345037731,1733945438652,-366.569356,0.00010958,2]
[345037732,1733945438661,-366.569356,0.00010958,2]
[345037733,1733945438671,-366.569356,0.00010958,2]
[345037734,1733945438681,-385.370196,0.00010958,2]
[345037735,1733945438691,-385.370196,0.00010958,2]
[345037736,1733945438700,-385.370196,0.00010958,2]
[345037737,1733945438709,-385.370196,0.00010958,2]
[345037738,1733945438718,-385.370196,0.00010958,2]
[345037739,1733945438728,-385.370196,0.00010958,2]
[345037740,1733945438737,-385.370196,0.00010958,2]
[345037741,1733945438746,-385.370196,0.00010958,2]
[345037742,1733945438755,-385.370196,0.00010958,2]
[345037743,1733945438764,-385.370196,0.00010958,2]
[345037744,1733945438773,-385.370196,0.00010958,2]
[345037745,1733945438783,-385.370196,0.00010958,2]
[345037746,1733945438793,-385.370196,0.00010958,2]
[345037747,1733945438802,-244.265782,0.00010958,2]
[345037748,1733945438813,-244.265782,0.00010958,2]
[345037749,1733945438823,-244.265782,0.00010958,2]
[345037750,1733945438833,-244.265782,0.00010958,2]
[345037751,1733945438843,-244.265782,0.00010958,2]
[345037752,1733945438853,-244.265782,0.00010958,2]
[345037753,1733945438862,-244.265782,0.00010958,2]
[345037754,1733945438871,-244.265782,0.00010958,2]
[345037755,1733945438880,-244.265782,0.00010958,2]
[345037756,1733945438890,-244.265782,0.00010958,2]
[345037757,1733945438899,-244.265782,0.00010958,2]
[345037758,1733945438908,-244.265782,0.00010958,2]
[345037759,1733945438919,-244.265782,0.00010958,2]
[345037760,1733945438930,-811.38,0.00010958,2]
[345037761,1733945438940,-811.38,0.00010958,2]
[345037762,1733945438950,-500.0,0.00010958,2]
[345037763,1733945438959,-500.0,0.00010958,2]
[345037764,1733945438969,-595.64,0.00010958,2]
[345037765,1733945438979,-595.64,0.00010958,2]
[345037766,1733945438988,-780.37,0.00010958,2]
[345037767,1733945438998,-780.37,0.00010958,2]
[345037768,1733945439008,-540.53,0.00010958,2]
[345037769,1733945439018,-540.53,0.00010958,2]
[345037770,1733945439027,-500.0,0.00010958,2]
[345037771,1733945439037,-500.0,0.00010958,2]
[345037772,1733945439047,-163.358828,0.00010958,2]
[345037773,1733945439056,-163.358828,0.00010958,2]
[345037774,1733945439065,-163.358828,0.00010958,2]
[345037775,1733945439075,-163.358828,0.00010958,2]
[345037776,1733945439085,-163.358828,0.00010958,2]
[345037777,1733945439096,-163.358828,0.00010958,2]
[345037778,1733945439106,-163.358828,0.00010958,2]
[345037779,1733945439115,-163.358828,0.00010958,2]
[345037780,1733945439124,-500.0,0.00010958,2]
[345037781,1733945439134,-500.0,0.00010958,2]
[345037782,1733945439144,-500.0,0.00010958,2]
[345037783,1733945439154,-500.0,0.00010958,2]
[345037784,1733945439163,-500.0,0.00010958,2]
[345037785,1733945439173,-500.0,0.00010958,2]
[345037786,1733945439185,-714.57,0.00010958,2]
[345037787,1733945439194,-714.57,0.00010958,2]
[345037788,1733945439204,-542.67,0.00010958,2]
[345037789,1733945439214,-542.67,0.00010958,2]
[345037790,1733945439224,-500.0,0.00010958,2]
[345037791,1733945439235,-500.0,0.00010958,2]
[345037792,1733945439245,-500.0,0.00010958,2]
[345037793,1733945439255,-500.0,0.00010958,2]
[345037794,1733945439265,-545.3,0.00010958,2]
[345037795,1733945439275,-500.0,0.00010958,2]
[345037796,1733945439285,-500.0,0.00010958,2]
[345037797,1733945439295,-500.0,0.00010958,2]
[345037798,1733945439304,-500.0,0.00010958,2]
[345037799,1733945439314,-500.0,0.00010958,2]
[345037800,1733945439323,-500.0,0.00010958,2]
[345037801,1733945439333,-500.0,0.00010958,2]
[345037802,1733945439343,-500.0,0.00010958,2]
[345037803,1733945439353,-500.0,0.00010958,2]
[345037804,1733945439363,-500.0,0.00010958,2]
[345037805,1733945439373,-500.0,0.00010958,2]
[345037806,1733945439383,-500.0,0.00010958,2]
[345037807,1733945439392,-500.0,0.00010958,2]
[345037808,1733945439402,-500.0,0.00010958,2]
[345037809,1733945439412,-500.0,0.00010958,2]
[345037810,1733945439422,-500.0,0.00010958,2]
[345037811,1733945439433,-500.0,0.00010958,2]
[345037812,1733945439443,-1401.08,0.00010958,2]
[345037813,1733945439452,-500.0,0.00010958,2]
[345037814,1733945439462,-1401.08,0.00010958,2]
[345037815,1733945439472,-500.0,0.00010958,2]
[345037816,1733945439482,-500.0,0.00010958,2]
[345037817,1733945439492,-150.0,0.00010959,2]
[345037818,1733945439501,-634.0,0.0001096,2]
[345037819,1733945439511,-283.52348972,0.00010968,2]
[345037820,1733945439522,-772.37229386,0.00010968,2]
[345037821,1733945439531,-788.04886175,0.00010969,2]
[345037822,1733945439541,-13653.45698988,0.0001097,2]
[345037823,1733945439550,-788.04886175,0.0001097,2]
[345037824,1733945439560,-772.37229386,0.00010971,2]
[345037825,1733945439570,-33293.59876114,0.00010972,2]
[345037826,1733945439580,-200.0,0.00010976,2]
[345037827,1733945439590,-13653.45698988,0.00010977,2]
[345037828,1733945439599,-13653.45698988,0.00010978,2]
[345037829,1733945439609,-13653.45698988,0.00010979,2]
[345037830,1733945439618,-13653.45698988,0.0001098,2]
[345037831,1733945439627,-283.52348972,0.00010981,2]
[345037832,1733945439637,-33293.59876114,0.00010983,2]
[345037833,1733945439646,-13653.45698988,0.00010984,2]
[345037834,1733945439656,-283.52348972,0.00010984,2]
[345037835,1733945439665,-33293.59876114,0.00010986,2]
[345037836,1733945439675,-788.04886175,0.00010988,2]
[345037837,1733945439686,-772.37229386,0.00010988,2]
[345037838,1733945439696,-33293.59876114,0.00010988,2]
[345037839,1733945439705,-7880.0,0.00010988,2]
[345037840,1733945439715,-200.0,0.00010989,2]
[345037841,1733945439725,-772.37229386,0.0001099,2]
[345037842,1733945439735,-33293.59876114,0.00010991,2]
[345037843,1733945439745,-200.0,0.00010992,2]
[345037844,1733945439755,-200.0,0.00010992,2]
[345037845,1733945439765,-200.0,0.00010993,2]
[345037846,1733945439775,-283.52348972,0.00010994,2]
[345037848,1733945439786,-788.04886175,0.00010996,2]
[345037849,1733945439797,-33293.59876114,0.00010996,2]
[345037850,1733945439807,-788.04886175,0.00010996,2]
[345037852,1733945439816,-772.37229386,0.00010997,2]
[345037853,1733945439825,-772.37229386,0.00010998,2]
[345037854,1733945439835,-283.52348972,0.00010998,2]
[345037855,1733945439845,-788.04886175,0.00010998,2]
[345037856,1733945439855,-500.22,0.00010999,2]
[345037857,1733945439864,-500.22,0.00010999,2]
[345037858,1733945439874,-581.63,0.00010999,2]
[345037859,1733945439883,-500.0,0.00010999,2]
[345037860,1733945439893,-500.0,0.00010999,2]
[345037861,1733945439903,-500.0,0.00010999,2]
[345037862,1733945439912,-500.0,0.00010999,2]
[345037863,1733945439926,-500.0,0.00010999,2]
[345037864,1733945439936,-539.58,0.00010999,2]
[345037865,1733945439946,-675.01,0.00010999,2]
[345037866,1733945439956,-500.0,0.00010999,2]
[345037867,1733945439966,-500.0,0.00010999,2]
[345037868,1733945439976,-723.83,0.00010999,2]
[345037869,1733945439986,-500.0,0.00010999,2]
[345037870,1733945439997,-500.0,0.00010999,2]
[345037871,1733945440006,-1161.29,0.00010999,2]
[345037872,1733945440016,-500.0,0.00010999,2]
[345037873,1733945440026,-255.0,0.00010999,2]
[345037874,1733945440037,-500.0,0.00010999,2]
[345037875,1733945440047,-500.0,0.00010999,2]
[345037876,1733945440056,-500.0,0.00010999,2]
[345037877,1733945440066,-283.52348972,0.00011,2]
[345037878,1733945440075,-3840.88816469,0.00011,2]
[345037879,1733945440085,-166.39663466,0.00011,2]
[345037880,1733945440094,-105623.44714787,0.00011,2]
[345037881,1733945440104,-5000.0,0.00011,2]
[345037882,1733945440113,-400.61491368,0.00011,2]
[345037883,1733945440123,-200.0,0.00011011,2]
[345037884,1733945440133,-380.98,0.0001102,2]
[345037885,1733945440143,-182.318,0.0001104,2]
[345037886,1733945440152,-1181.897,0.00011046,2]
[345037887,1733945440162,-500.0,0.00011068,2]
[345037888,1733945440172,-1401.08,0.00011068,2]
[345037889,1733945440183,-12754.0,0.00011068,2]
[345037890,1733945440194,-30111.0,0.00011068,2]
[345037891,1733945440203,-2200.0,0.00011068,2]
[345037892,1733945440213,-1958.0,0.00011068,2]
[345037893,1733945440222,-500.0,0.00011073,2]
[345037894,1733945440232,-275.16894386,0.00011073,2]
[345037895,1733945440242,-503.64091238,0.00011073,2]
[345037896,1733945440251,-280.21745732,0.00011073,2]
[345037897,1733945440261,-500.0,0.00011073,2]
[345037898,1733945440271,-185.0,0.00011082,2]
[345037899,1733945440281,-435.46895825,0.0001109,2]
[345037900,1733945440290,-500.22,0.00011098,2]
[345037901,1733945440300,-500.22,0.00011098,2]
[345037902,1733945440309,-500.0,0.00011098,2]
[345037903,1733945440318,-811.38,0.00011098,2]
[345037904,1733945440328,-811.38,0.00011098,2]
[345037905,1733945440338,-500.0,0.00011098,2]
[345037906,1733945440347,-500.0,0.00011098,2]
[345037907,1733945440356,-500.0,0.00011098,2]
[345037908,1733945440366,-500.0,0.00011098,2]
[345037909,1733945440375,-595.64,0.00011098,2]
[345037910,1733945440384,-500.0,0.00011098,2]
[345037911,1733945440393,-595.64,0.00011098,2]
[345037912,1733945440403,-675.01,0.00011098,2]
[345037913,1733945440412,-780.37,0.00011098,2]
[345037914,1733945440422,-780.37,0.00011098,2]
[345037915,1733945440432,-540.53,0.00011098,2]
[345037917,1733945440442,-500.0,0.00011098,2]
[345037919,1733945440451,-540.53,0.00011098,2]
[345037920,1733945440460,-500.0,0.00011098,2]
[345037921,1733945440469,-500.0,0.00011098,2]
[345037922,1733945440478,-500.0,0.00011098,2]
[345037923,1733945440488,-723.83,0.00011098,2]
[345037924,1733945440497,-500.0,0.00011098,2]
[345037925,1733945440507,-500.0,0.00011098,2]
[345037926,1733945440516,-500.0,0.00011098,2]
[345037927,1733945440526,-1161.29,0.00011098,2]
[345037928,1733945440536,-500.0,0.00011098,2]
[345037929,1733945440545,-500.0,0.00011098,2]
[345037930,1733945440554,-714.57,0.00011098,2]
[345037931,1733945440564,-714.57,0.00011098,2]
[345037932,1733945440573,-500.0,0.00011098,2]
[345037933,1733945440583,-542.67,0.00011098,2]
[345037934,1733945440593,-542.67,0.00011098,2]
[345037935,1733945440602,-415.18,0.00011098,2]
[345037936,1733945440612,-500.0,0.00011098,2]
[345037937,1733945440621,-629.05,0.00011098,2]
[345037938,1733945440630,-500.0,0.00011098,2]
[345037939,1733945440639,-500.0,0.00011098,2]
[345037940,1733945440648,-500.0,0.00011098,2]
[345037941,1733945440658,-500.0,0.00011098,2]
[345037942,1733945440668,-500.0,0.00011098,2]
[345037943,1733945440678,-392.84,0.00011098,2]
[345037944,1733945440688,-500.0,0.00011098,2]
[345037945,1733945440698,-500.0,0.00011098,2]
[345037946,1733945440707,-500.0,0.00011098,2]
[345037947,1733945440898,-500.0,0.00011098,2]
[345037948,1733945440909,-500.0,0.00011098,2]
[345037949,1733945440921,-619.82,0.00011098,2]
[345037950,1733945440932,-500.0,0.00011098,2]
[345037951,1733945440941,-500.0,0.00011098,2]
[345037952,1733945440951,-324.03,0.00011098,2]
[345037953,1733945440961,-1401.08,0.00011098,2]
[345037954,1733945440971,-1401.08,0.00011098,2]
[345037955,1733945440980,-1401.08,0.00011098,2]
[345037956,1733945440990,-338.14281142,0.00011098,2]
[345037957,1733945441002,-429.9412797,0.00011098,2]
[345037958,1733945441011,-254.98071316,0.00011098,2]
[345037959,1733945441021,-500.80093269,0.00011099,2]
[345037960,1733945441031,-500.0,0.00011099,2]
[345037961,1733945441040,-519.58,0.00011099,2]
[345037962,1733945441050,-500.0,0.00011099,2]
[345037963,1733945441060,-500.0,0.00011099,2]
[345037964,1733945441069,-500.0,0.00011099,2]
[345037965,1733945441079,-500.0,0.00011099,2]
[345037966,1733945441089,-500.0,0.00011099,2]
[345037967,1733945441098,-500.0,0.00011099,2]
[345037968,1733945441107,-500.0,0.00011099,2]
[345037969,1733945441117,-243.097287,0.00011099,2]
[345037970,1733945441126,-500.0,0.00011099,2]
[345037971,1733945441136,-500.0,0.00011099,2]
[345037972,1733945441146,-500.0,0.00011099,2]
[345037973,1733945441156,-500.0,0.00011099,2]
[345037974,1733945441166,-549.98,0.00011099,2]
[345037975,1733945441175,-516.42,0.00011099,2]
[345037976,1733945441191,-500.22,0.00011099,2]
[345037977,1733945441201,-500.22,0.00011099,2]
[345037978,1733945441211,-500.22,0.00011099,2]
[345037979,1733945441220,-500.22,0.00011099,2]
[345037980,1733945441230,-500.22,0.00011099,2]
[345037981,1733945441240,-500.22,0.00011099,2]
[345037982,1733945441250,-500.22,0.00011099,2]
[345037983,1733945441260,-500.22,0.00011099,2]
[345037984,1733945441269,-500.22,0.00011099,2]
[345037985,1733945441279,-500.22,0.00011099,2]
[345037986,1733945441289,-500.22,0.00011099,2]
[345037987,1733945441298,-500.22,0.00011099,2]
[345037988,1733945441307,-500.22,0.00011099,2]
[345037989,1733945441317,-500.22,0.00011099,2]
[345037990,1733945441327,-500.22,0.00011099,2]
[345037991,1733945441336,-500.22,0.00011099,2]
[345037992,1733945441346,-500.22,0.00011099,2]
[345037993,1733945441356,-500.22,0.00011099,2]
[345037994,1733945441365,-500.27324537,0.00011099,2]
[345037995,1733945441375,-1000.0,0.00011099,2]
[345037996,1733945441384,-500.0,0.00011099,2]
[345037997,1733945441394,-500.0,0.00011099,2]
[345037998,1733945441404,-221.56,0.00011099,2]
[345037999,1733945441413,-500.0,0.00011099,2]
[345038000,1733945441422,-601.04,0.00011099,2]
[345038001,1733945441437,-500.0,0.00011099,2]
[345038002,1733945441447,-500.0,0.00011099,2]
[345038003,1733945441456,-210.59755095,0.00011099,2]
[345038004,1733945441466,-500.0,0.00011099,2]
[345038005,1733945441475,-500.0,0.00011099,2]
[345038006,1733945441485,-500.0,0.00011099,2]
[345038007,1733945441495,-500.0,0.00011099,2]
[345038008,1733945441504,-500.0,0.00011099,2]
[345038009,1733945441514,-500.0,0.00011099,2]
[345038010,1733945441523,-500.0,0.00011099,2]
[345038011,1733945441533,-500.0,0.00011099,2]
[345038012,1733945441542,-500.0,0.00011099,2]
[345038013,1733945441551,-500.0,0.00011099,2]
[345038014,1733945441561,-500.0,0.00011099,2]
[345038015,1733945441571,-500.0,0.00011099,2]
[345038016,1733945441580,-500.0,0.00011099,2]
[345038017,1733945441590,-616.21,0.00011099,2]
[345038018,1733945441599,-500.0,0.00011099,2]
[345038019,1733945441609,-500.0,0.00011099,2]
[345038020,1733945441618,-500.0,0.00011099,2]
[345038021,1733945441628,-500.0,0.00011099,2]
[345038022,1733945441638,-500.0,0.00011099,2]
[345038023,1733945441648,-500.0,0.00011099,2]
[345038024,1733945441658,-500.0,0.00011099,2]
[345038025,1733945441668,-348.05,0.00011099,2]
[345038026,1733945441677,-500.0,0.00011099,2]
[345038027,1733945441689,-500.0,0.00011099,2]
[345038028,1733945441698,-500.0,0.00011099,2]
[345038029,1733945441708,-500.0,0.00011099,2]
[345038030,1733945441717,-500.0,0.00011099,2]
[345038031,1733945441727,-500.0,0.00011099,2]
[345038032,1733945441737,-500.0,0.00011099,2]
[345038033,1733945441747,-326.30620271,0.00011099,2]
[345038034,1733945441757,-500.0,0.00011099,2]
[345038035,1733945441767,-500.0,0.00011099,2]
[345038036,1733945441776,-500.0,0.00011099,2]
[345038037,1733945441786,-500.0,0.00011099,2]
[345038038,1733945441795,-500.0,0.00011099,2]
[345038039,1733945441805,-500.0,0.00011099,2]
[345038040,1733945441815,-500.0,0.00011099,2]
[345038041,1733945441825,-500.0,0.00011099,2]
[345038042,1733945441833,-324.49,0.00011099,2]
[345038043,1733945441842,-500.0,0.00011099,2]
[345038044,1733945441851,-617.81,0.00011099,2]
[345038045,1733945441860,-617.81,0.00011099,2]
[345038046,1733945441869,-617.81,0.00011099,2]
[345038047,1733945441878,-617.81,0.00011099,2]
[345038048,1733945441888,-617.81,0.00011099,2]
[345038049,1733945441898,-548.89,0.00011099,2]
[345038050,1733945441908,-617.81,0.00011099,2]
[345038051,1733945441920,-548.89,0.00011099,2]
[345038052,1733945441933,-617.81,0.00011099,2]
[345038053,1733945441944,-548.89,0.00011099,2]
[345038054,1733945441954,-617.81,0.00011099,2]
[345038055,1733945441964,-548.89,0.00011099,2]
[345038056,1733945441974,-548.89,0.00011099,2]
[345038057,1733945441984,-617.81,0.00011099,2]
[345038058,1733945441994,-617.81,0.00011099,2]
[345038059,1733945442003,-548.89,0.00011099,2]
[345038060,1733945442013,-617.81,0.00011099,2]
[345038061,1733945442023,-500.0,0.00011099,2]
[345038062,1733945442033,-617.81,0.00011099,2]
[345038063,1733945442043,-500.0,0.00011099,2]
[345038064,1733945442053,-548.89,0.00011099,2]
[345038065,1733945442063,-617.81,0.00011099,2]
[345038066,1733945442073,-500.0,0.00011099,2]
[345038067,1733945442083,-548.89,0.00011099,2]
[345038068,1733945442092,-617.81,0.00011099,2]
[345038069,1733945442102,-500.0,0.00011099,2]
[345038070,1733945442113,-548.89,0.00011099,2]
[345038071,1733945442123,-617.81,0.00011099,2]
[345038072,1733945442132,-500.0,0.00011099,2]
[345038073,1733945442142,-500.0,0.00011099,2]
[345038074,1733945442151,-548.89,0.00011099,2]
[345038075,1733945442161,-500.0,0.00011099,2]